[Event "*** Titled Tuesday Blitz"]
[Site "Chess.com"]
[Date "2019.09.03"]
[Round "1"]
[White "boasovietica"]
[Black "daro94"]
[Result "0-1"]
[WhiteElo "2456"]
[BlackElo "2877"]
[TimeControl "180+2"]
[EndTime "15:09:15 PDT"]
[Termination "daro94 won by resignation"]

1. e4 {[%clk 0:02:59.8]} 1... c5 {[%clk 0:02:58.1]} 2. Nf3 {[%clk 0:02:57.2]}
2... d6 {[%clk 0:02:57.4]} 3. Nc3 {[%clk 0:02:54.2]} 3... a6 {[%clk 0:02:57.2]}
4. a4 {[%clk 0:02:46.9]} 4... Nf6 {[%clk 0:02:53.6]} 5. Bc4 {[%clk 0:02:34]}
5... e6 {[%clk 0:02:48.8]} 6. d3 {[%clk 0:02:30.5]} 6... Be7 {[%clk 0:02:47.2]}
7. O-O {[%clk 0:02:30.8]} 7... O-O {[%clk 0:02:47.8]} 8. e5 {[%clk 0:02:26.6]}
8... dxe5 {[%clk 0:02:38.4]} 9. Nxe5 {[%clk 0:02:27.2]} 9... Nbd7 {[%clk
0:02:28.7]} 10. Bf4 {[%clk 0:02:14]} 10... Nxe5 {[%clk 0:02:25.7]} 11. Bxe5
{[%clk 0:02:14.6]} 11... Bd7 {[%clk 0:02:26.9]} 12. Ne4 {[%clk 0:02:08.2]} 12...
Bc6 {[%clk 0:02:16.7]} 13. Nxf6+ {[%clk 0:02:04.3]} 13... Bxf6 {[%clk
0:02:16.1]} 14. Qe2 {[%clk 0:01:57.8]} 14... Bxe5 {[%clk 0:01:47.4]} 15. Qxe5
{[%clk 0:01:56.5]} 15... Qd4 {[%clk 0:01:48.9]} 16. Rfe1 {[%clk 0:01:40.8]}
16... Rfd8 {[%clk 0:01:35]} 17. Qxd4 {[%clk 0:01:35.3]} 17... cxd4 {[%clk
0:01:35.7]} 18. a5 {[%clk 0:01:22.8]} 18... Rac8 {[%clk 0:01:35.1]} 19. Re5
{[%clk 0:01:14.8]} 19... g6 {[%clk 0:01:28.7]} 20. f4 {[%clk 0:01:00.7]} 20...
Kf8 {[%clk 0:01:28.9]} 21. Kf2 {[%clk 0:01:01.4]} 21... Ke7 {[%clk 0:01:30.3]}
22. g4 {[%clk 0:01:02.5]} 22... Kd6 {[%clk 0:01:28.8]} 23. Rae1 {[%clk
0:01:00.8]} 23... Bd5 {[%clk 0:01:12.6]} 24. b3 {[%clk 0:00:53.1]} 24... Rc5
{[%clk 0:01:07.8]} 25. f5 {[%clk 0:00:49.4]} 25... gxf5 {[%clk 0:00:23.1]} 26.
gxf5 {[%clk 0:00:50]} 26... Bxc4 {[%clk 0:00:19]} 27. Rxc5 {[%clk 0:00:47.3]}
27... Bxd3 {[%clk 0:00:20.4]} 28. Rce5 {[%clk 0:00:37.9]} 28... Bxf5 {[%clk
0:00:21.4]} 29. R5e2 {[%clk 0:00:35.9]} 29... Rc8 {[%clk 0:00:22.2]} 30. Rd1
{[%clk 0:00:33.3]} 30... e5 {[%clk 0:00:21.8]} 31. c4 {[%clk 0:00:24.7]} 31...
Bg4 {[%clk 0:00:20.7]} 32. Rf1 {[%clk 0:00:20.3]} 32... Bxe2 {[%clk 0:00:21.5]}
33. Kxe2 {[%clk 0:00:22]} 33... Ke6 {[%clk 0:00:23]} 34. Kd3 {[%clk 0:00:21.3]}
34... Rg8 {[%clk 0:00:23.5]} 35. b4 {[%clk 0:00:19.9]} 35... f5 {[%clk
0:00:21.4]} 36. b5 {[%clk 0:00:20.8]} 36... Rg2 {[%clk 0:00:17.4]} 37. bxa6
{[%clk 0:00:20.3]} 37... bxa6 {[%clk 0:00:19.3]} 38. Rb1 {[%clk 0:00:21.4]}
38... f4 {[%clk 0:00:18.8]} 39. Rb6+ {[%clk 0:00:21.9]} 39... Kf5 {[%clk
0:00:20.3]} 40. Rxa6 {[%clk 0:00:21]} 40... Ra2 {[%clk 0:00:19.7]} 41. Ra8
{[%clk 0:00:21.6]} 41... Ra3+ {[%clk 0:00:20.8]} 42. Kd2 {[%clk 0:00:22.5]}
42... f3 {[%clk 0:00:21.1]} 43. a6 {[%clk 0:00:22.9]} 43... e4 {[%clk
0:00:19.8]} 44. a7 {[%clk 0:00:20.5]} 44... e3+ {[%clk 0:00:21.3]} 45. Kc2
{[%clk 0:00:16.5]} 45... f2 {[%clk 0:00:20.3]} 46. Kb2 {[%clk 0:00:11.8]} 46...
Ra6 {[%clk 0:00:20.3]} 47. c5 {[%clk 0:00:11.2]} 47... Ke6 {[%clk 0:00:20.3]}
48. Re8+ {[%clk 0:00:03.6]} 48... Kd7 {[%clk 0:00:20.8]} 49. a8=Q {[%clk
0:00:04.1]} 49... Rxa8 {[%clk 0:00:21.5]} 50. Rxa8 {[%clk 0:00:06]} 50... f1=Q
{[%clk 0:00:22.8]} 0-1

[Event "*** Titled Tuesday Blitz"]
[Site "Chess.com"]
[Date "2019.09.03"]
[Round "1"]
[White "Induwara_IM"]
[Black "TenisMaster"]
[Result "0-1"]
[WhiteElo "2405"]
[BlackElo "2793"]
[TimeControl "180+2"]
[EndTime "15:09:20 PDT"]
[Termination "TenisMaster won by checkmate"]

1. d4 {[%clk 0:02:50.8]} 1... Nf6 {[%clk 0:03:00.2]} 2. c4 {[%clk 0:02:51.4]}
2... e6 {[%clk 0:03:00.3]} 3. Nf3 {[%clk 0:02:51.6]} 3... d5 {[%clk 0:02:58.7]}
4. Nc3 {[%clk 0:02:49.3]} 4... c6 {[%clk 0:02:59.7]} 5. e3 {[%clk 0:02:49]} 5...
Nbd7 {[%clk 0:03:00.3]} 6. Qc2 {[%clk 0:02:49.7]} 6... Bd6 {[%clk 0:03:01.3]} 7.
Be2 {[%clk 0:02:50]} 7... O-O {[%clk 0:03:01.7]} 8. O-O {[%clk 0:02:50.1]} 8...
dxc4 {[%clk 0:03:02.8]} 9. e4 {[%clk 0:02:42.4]} 9... e5 {[%clk 0:02:59.9]} 10.
Rd1 {[%clk 0:02:31.9]} 10... Qc7 {[%clk 0:02:45.8]} 11. dxe5 {[%clk 0:02:21.6]}
11... Nxe5 {[%clk 0:02:46.1]} 12. Nxe5 {[%clk 0:02:16.7]} 12... Bxe5 {[%clk
0:02:46.6]} 13. g3 {[%clk 0:02:18.1]} 13... b5 {[%clk 0:02:38.2]} 14. f4 {[%clk
0:02:18.9]} 14... Bxc3 {[%clk 0:02:38.2]} 15. bxc3 {[%clk 0:02:19.9]} 15... Qb6+
{[%clk 0:02:35]} 16. Kg2 {[%clk 0:02:18.4]} 16... Bg4 {[%clk 0:02:35.9]} 17.
Bxg4 {[%clk 0:01:59.3]} 17... Nxg4 {[%clk 0:02:36.7]} 18. e5 {[%clk 0:01:56.9]}
18... Rad8 {[%clk 0:02:35.9]} 19. Rxd8 {[%clk 0:01:47.2]} 19... Rxd8 {[%clk
0:02:35.9]} 20. Qe2 {[%clk 0:01:45.9]} 20... Nh6 {[%clk 0:02:13.5]} 21. Be3
{[%clk 0:01:35.4]} 21... Qc7 {[%clk 0:02:12.8]} 22. g4 {[%clk 0:01:35]} 22... c5
{[%clk 0:02:07.6]} 23. Rd1 {[%clk 0:01:32.3]} 23... Rd3 {[%clk 0:01:51]} 24. h3
{[%clk 0:00:59]} 24... Qc6+ {[%clk 0:01:49.2]} 25. Kf2 {[%clk 0:00:58]} 25...
Qd5 {[%clk 0:01:49.5]} 26. Rb1 {[%clk 0:00:54.6]} 26... a6 {[%clk 0:01:43.6]}
27. a4 {[%clk 0:00:55.1]} 27... Qe4 {[%clk 0:00:44.4]} 28. Rb2 {[%clk
0:00:26.6]} 28... Qh1 {[%clk 0:00:39.1]} 29. axb5 {[%clk 0:00:25.7]} 29... Qxh3
{[%clk 0:00:36.8]} 30. bxa6 {[%clk 0:00:24.9]} 30... g6 {[%clk 0:00:25.6]} 31.
Rb8+ {[%clk 0:00:09.7]} 31... Kg7 {[%clk 0:00:26.1]} 32. Bxc5 {[%clk 0:00:11]}
32... Qg3+ {[%clk 0:00:20.8]} 33. Kf1 {[%clk 0:00:10]} 33... Rf3+ {[%clk
0:00:22.3]} 34. Qxf3 {[%clk 0:00:09.9]} 34... Qxf3+ {[%clk 0:00:23.4]} 35. Ke1
{[%clk 0:00:11.1]} 35... Qxc3+ {[%clk 0:00:22.7]} 36. Kd1 {[%clk 0:00:11.3]}
36... Qa1+ {[%clk 0:00:22.3]} 37. Kc2 {[%clk 0:00:12]} 37... g5 {[%clk
0:00:19.1]} 38. f5 {[%clk 0:00:12.5]} 38... Nxf5 {[%clk 0:00:20.2]} 39. gxf5
{[%clk 0:00:13.1]} 39... Kh6 {[%clk 0:00:21.7]} 40. Rb6+ {[%clk 0:00:13.3]}
40... Kh5 {[%clk 0:00:22.2]} 41. Bf8 {[%clk 0:00:13.7]} 41... g4 {[%clk
0:00:22.5]} 42. Rh6+ {[%clk 0:00:14.8]} 42... Kg5 {[%clk 0:00:23.6]} 43. Rxh7
{[%clk 0:00:15.9]} 43... Qa2+ {[%clk 0:00:24.2]} 44. Kc1 {[%clk 0:00:16.4]}
44... Qa1+ {[%clk 0:00:24.9]} 45. Kc2 {[%clk 0:00:17.6]} 45... Qxa6 {[%clk
0:00:25.8]} 46. Rxf7 {[%clk 0:00:17.4]} 46... Qa4+ {[%clk 0:00:26.2]} 47. Kc1
{[%clk 0:00:17.6]} 47... Qa1+ {[%clk 0:00:26.9]} 48. Kc2 {[%clk 0:00:18.6]}
48... Qa2+ {[%clk 0:00:28.2]} 49. Kc1 {[%clk 0:00:20.1]} 49... c3 {[%clk
0:00:29.3]} 50. Be7+ {[%clk 0:00:20]} 50... Kf4 {[%clk 0:00:30.2]} 51. Ba3
{[%clk 0:00:08.2]} 51... Qxa3+ {[%clk 0:00:29.2]} 52. Kd1 {[%clk 0:00:09.8]}
52... Qb3+ {[%clk 0:00:28.7]} 53. Ke2 {[%clk 0:00:10.2]} 53... Qc2+ {[%clk
0:00:29.5]} 54. Kf1 {[%clk 0:00:11.2]} 54... Kf3 {[%clk 0:00:29.8]} 55. Kg1
{[%clk 0:00:11.9]} 55... Qg2# {[%clk 0:00:30.3]} 0-1

[Event "*** Titled Tuesday Blitz"]
[Site "Chess.com"]
[Date "2019.09.03"]
[Round "1"]
[White "Padenie_Zvezd"]
[Black "Mikhail_Golubev"]
[Result "1-0"]
[WhiteElo "2814"]
[BlackElo "2415"]
[TimeControl "180+2"]
[EndTime "15:09:21 PDT"]
[Termination "Padenie_Zvezd won on time"]

1. d4 {[%clk 0:02:57.2]} 1... Nf6 {[%clk 0:03:00.1]} 2. c4 {[%clk 0:02:57.1]}
2... g6 {[%clk 0:03:00.4]} 3. Nc3 {[%clk 0:02:57.1]} 3... Bg7 {[%clk 0:03:01.4]}
4. e4 {[%clk 0:02:58.1]} 4... d6 {[%clk 0:03:02.6]} 5. Nf3 {[%clk 0:02:59]} 5...
O-O {[%clk 0:03:03.5]} 6. Be2 {[%clk 0:03:00.4]} 6... e5 {[%clk 0:03:04.6]} 7.
O-O {[%clk 0:03:00.9]} 7... Nc6 {[%clk 0:03:05.2]} 8. d5 {[%clk 0:03:01.8]} 8...
Ne7 {[%clk 0:03:05.5]} 9. Ne1 {[%clk 0:03:00.1]} 9... Ne8 {[%clk 0:03:04.9]} 10.
Nd3 {[%clk 0:02:58.8]} 10... f5 {[%clk 0:03:05.7]} 11. a4 {[%clk 0:02:45.5]}
11... Nf6 {[%clk 0:03:04.5]} 12. f3 {[%clk 0:02:36.1]} 12... f4 {[%clk
0:03:03.7]} 13. c5 {[%clk 0:02:36.8]} 13... g5 {[%clk 0:03:04.2]} 14. a5 {[%clk
0:02:29.9]} 14... Ng6 {[%clk 0:03:02.9]} 15. c6 {[%clk 0:02:20.8]} 15... bxc6
{[%clk 0:02:51]} 16. dxc6 {[%clk 0:02:22.7]} 16... d5 {[%clk 0:02:36.8]} 17.
exd5 {[%clk 0:02:20.2]} 17... Nxd5 {[%clk 0:02:37.5]} 18. Nxe5 {[%clk
0:02:04.1]} 18... Nxe5 {[%clk 0:02:10.6]} 19. Qxd5+ {[%clk 0:02:00.5]} 19...
Qxd5 {[%clk 0:02:06.5]} 20. Nxd5 {[%clk 0:02:02.4]} 20... Nxc6 {[%clk
0:01:57.3]} 21. Nxc7 {[%clk 0:01:51.7]} 21... Rb8 {[%clk 0:01:58]} 22. Bc4+
{[%clk 0:01:52.4]} 22... Kh8 {[%clk 0:01:58.2]} 23. Ra2 {[%clk 0:01:20.3]} 23...
Rd8 {[%clk 0:01:46]} 24. b3 {[%clk 0:01:18.8]} 24... Bd4+ {[%clk 0:01:19.2]} 25.
Kh1 {[%clk 0:01:19]} 25... Bc3 {[%clk 0:01:15.7]} 26. a6 {[%clk 0:01:14.8]}
26... Ne5 {[%clk 0:01:11.3]} 27. Rc2 {[%clk 0:01:08]} 27... Bd4 {[%clk
0:01:02.3]} 28. Be6 {[%clk 0:00:56.1]} 28... Nd3 {[%clk 0:00:48.8]} 29. Rd1
{[%clk 0:00:53.3]} 29... Nxc1 {[%clk 0:00:17.2]} 30. Rcxc1 {[%clk 0:00:55.2]}
30... Bf6 {[%clk 0:00:11.6]} 31. Bc4 {[%clk 0:00:52.7]} 31... Rxd1+ {[%clk
0:00:10.5]} 32. Rxd1 {[%clk 0:00:53.5]} 32... Bf5 {[%clk 0:00:11.2]} 33. Rd5
{[%clk 0:00:48.5]} 33... Bg6 {[%clk 0:00:09.9]} 34. Nb5 {[%clk 0:00:47]} 34...
Re8 {[%clk 0:00:09.2]} 35. Rd1 {[%clk 0:00:47.2]} 35... Re7 {[%clk 0:00:09.4]}
36. Bd5 {[%clk 0:00:45.2]} 36... Bc2 {[%clk 0:00:07.2]} 37. Rc1 {[%clk
0:00:45.7]} 37... Bb2 {[%clk 0:00:07.8]} 38. Rg1 {[%clk 0:00:43.3]} 38... Bd3
{[%clk 0:00:08.4]} 39. Bc4 {[%clk 0:00:44.5]} 39... Bf5 {[%clk 0:00:06.4]} 40.
g3 {[%clk 0:00:40.7]} 40... Bc8 {[%clk 0:00:07]} 41. Nd6 {[%clk 0:00:37.2]}
41... Bh3 {[%clk 0:00:05.1]} 42. gxf4 {[%clk 0:00:36.3]} 42... Ba3 {[%clk
0:00:05.5]} 43. Nf7+ {[%clk 0:00:35.9]} 43... Kg7 {[%clk 0:00:04.4]} 44. Nxg5
{[%clk 0:00:37.8]} 44... Bf5 {[%clk 0:00:04.3]} 45. Ne4+ {[%clk 0:00:36.7]}
45... Kh6 {[%clk 0:00:05.4]} 46. Nf6 {[%clk 0:00:36.7]} 46... Re3 {[%clk
0:00:02.9]} 47. Bf7 {[%clk 0:00:23.9]} 1-0

[Event "*** Titled Tuesday Blitz"]
[Site "Chess.com"]
[Date "2019.09.03"]
[Round "1"]
[White "StoreySniper"]
[Black "pheonixking2000"]
[Result "0-1"]
[WhiteElo "2357"]
[BlackElo "2707"]
[TimeControl "180+2"]
[EndTime "15:09:24 PDT"]
[Termination "pheonixking2000 won by resignation"]

1. d4 {[%clk 0:03:01]} 1... Nf6 {[%clk 0:02:58.1]} 2. Nf3 {[%clk 0:03:01.7]}
2... b6 {[%clk 0:02:59.3]} 3. Bf4 {[%clk 0:03:01.6]} 3... Bb7 {[%clk 0:03:00]}
4. Nbd2 {[%clk 0:03:02]} 4... g6 {[%clk 0:03:01.4]} 5. e3 {[%clk 0:03:02.7]}
5... Bg7 {[%clk 0:03:02.8]} 6. c3 {[%clk 0:03:04.1]} 6... c5 {[%clk 0:03:04.3]}
7. h3 {[%clk 0:03:05.3]} 7... O-O {[%clk 0:03:05.2]} 8. Be2 {[%clk 0:03:06.2]}
8... d5 {[%clk 0:03:06.7]} 9. O-O {[%clk 0:03:06.8]} 9... Nc6 {[%clk 0:03:08.3]}
10. Ne5 {[%clk 0:03:06.7]} 10... Nd7 {[%clk 0:03:07.7]} 11. Nxd7 {[%clk
0:03:05.4]} 11... Qxd7 {[%clk 0:03:08.6]} 12. Qa4 {[%clk 0:03:02.4]} 12... a6
{[%clk 0:03:06.7]} 13. Qb3 {[%clk 0:02:59.7]} 13... b5 {[%clk 0:02:52.8]} 14.
dxc5 {[%clk 0:02:57.5]} 14... e5 {[%clk 0:02:54.4]} 15. Bh2 {[%clk 0:02:55.2]}
15... Qe7 {[%clk 0:02:51.2]} 16. Bf3 {[%clk 0:02:45.6]} 16... Rfd8 {[%clk
0:02:46.7]} 17. Qa3 {[%clk 0:02:41.6]} 17... Rac8 {[%clk 0:02:40]} 18. b4 {[%clk
0:02:37.3]} 18... e4 {[%clk 0:02:39.5]} 19. Bd6 {[%clk 0:02:37.1]} 19... Rxd6
{[%clk 0:02:35.2]} 20. cxd6 {[%clk 0:02:37.4]} 20... Qe5 {[%clk 0:02:21.7]} 21.
Be2 {[%clk 0:02:29.3]} 21... Qxc3 {[%clk 0:02:22.6]} 22. Qxc3 {[%clk 0:02:28.8]}
22... Bxc3 {[%clk 0:02:24.5]} 23. Rad1 {[%clk 0:02:24.4]} 23... Nxb4 {[%clk
0:02:20.5]} 24. a3 {[%clk 0:02:17.2]} 24... Nc2 {[%clk 0:02:13.9]} 25. Nb1
{[%clk 0:02:17.6]} 25... Bf6 {[%clk 0:02:05.2]} 26. Rc1 {[%clk 0:02:18.3]} 26...
d4 {[%clk 0:02:02]} 27. exd4 {[%clk 0:02:18.4]} 27... Nxd4 {[%clk 0:01:58.1]}
28. Rxc8+ {[%clk 0:02:14.9]} 28... Bxc8 {[%clk 0:02:00]} 29. Re1 {[%clk
0:02:02.8]} 29... Be5 {[%clk 0:02:00.7]} 30. Nc3 {[%clk 0:01:57.3]} 30... f5
{[%clk 0:01:54.1]} 31. Rd1 {[%clk 0:01:54.9]} 31... Bd7 {[%clk 0:01:50.2]} 32.
Bf1 {[%clk 0:01:54.9]} 32... Kf7 {[%clk 0:01:51.2]} 33. Nd5 {[%clk 0:01:54.8]}
33... Ke6 {[%clk 0:01:49.4]} 34. Nc7+ {[%clk 0:01:55.2]} 34... Kxd6 {[%clk
0:01:49.6]} 35. Nxa6 {[%clk 0:01:57.1]} 35... f4 {[%clk 0:01:37.8]} 36. Nb4
{[%clk 0:01:53.9]} 36... Ke6 {[%clk 0:01:30.8]} 37. Na6 {[%clk 0:01:40.2]} 37...
Kf5 {[%clk 0:01:29.3]} 38. Nc5 {[%clk 0:01:40.1]} 38... Bc6 {[%clk 0:01:30.9]}
39. Rb1 {[%clk 0:01:26.3]} 39... Nc2 {[%clk 0:01:20.5]} 40. Bxb5 {[%clk
0:01:15.7]} 40... Ba8 {[%clk 0:01:19.8]} 41. Bd7+ {[%clk 0:01:12.6]} 41... Kg5
{[%clk 0:01:21.1]} 42. Ne6+ {[%clk 0:00:48.3]} 42... Kf6 {[%clk 0:01:21.8]} 43.
Rb6 {[%clk 0:00:40.6]} 43... Ke7 {[%clk 0:00:48.8]} 44. Bc6 {[%clk 0:00:32.6]}
44... e3 {[%clk 0:00:49.8]} 45. fxe3 {[%clk 0:00:28.8]} 45... fxe3 {[%clk
0:00:50.3]} 46. Kf1 {[%clk 0:00:18.6]} 46... Bxc6 {[%clk 0:00:22.5]} 47. Rxc6
{[%clk 0:00:20.5]} 47... Nxa3 {[%clk 0:00:21.6]} 48. Ke2 {[%clk 0:00:21.1]}
48... Nb5 {[%clk 0:00:18.6]} 49. Ra6 {[%clk 0:00:19.1]} 49... Bd6 {[%clk
0:00:17]} 50. Kxe3 {[%clk 0:00:19.4]} 50... Kxe6 {[%clk 0:00:17.8]} 51. g4
{[%clk 0:00:17]} 51... Nc7 {[%clk 0:00:18.7]} 52. Rb6 {[%clk 0:00:16.4]} 52...
Nd5+ {[%clk 0:00:19.2]} 0-1

[Event "*** Titled Tuesday Blitz"]
[Site "Chess.com"]
[Date "2019.09.03"]
[Round "1"]
[White "1random"]
[Black "kosmeg"]
[Result "1-0"]
[WhiteElo "2755"]
[BlackElo "2387"]
[TimeControl "180+2"]
[EndTime "15:09:25 PDT"]
[Termination "1random won by resignation"]

1. d4 {[%clk 0:03:00.7]} 1... Nf6 {[%clk 0:03:00.5]} 2. Nf3 {[%clk 0:03:01.4]}
2... e6 {[%clk 0:03:00.6]} 3. c4 {[%clk 0:03:02.4]} 3... Bb4+ {[%clk 0:03:00.9]}
4. Nbd2 {[%clk 0:03:03.4]} 4... b6 {[%clk 0:03:01.4]} 5. a3 {[%clk 0:03:02.4]}
5... Bxd2+ {[%clk 0:03:02.3]} 6. Qxd2 {[%clk 0:03:04.3]} 6... Bb7 {[%clk
0:03:03.9]} 7. e3 {[%clk 0:03:05.5]} 7... O-O {[%clk 0:03:03.9]} 8. Be2 {[%clk
0:03:06.8]} 8... Ne4 {[%clk 0:03:04.8]} 9. Qc2 {[%clk 0:03:08]} 9... f5 {[%clk
0:03:06.7]} 10. b4 {[%clk 0:03:08.5]} 10... a5 {[%clk 0:03:07.4]} 11. Bb2 {[%clk
0:03:06.4]} 11... axb4 {[%clk 0:03:02.1]} 12. axb4 {[%clk 0:03:08.3]} 12...
Rxa1+ {[%clk 0:03:03.8]} 13. Bxa1 {[%clk 0:03:10.2]} 13... Nc6 {[%clk
0:03:04.8]} 14. Qb2 {[%clk 0:02:38.1]} 14... Qe7 {[%clk 0:02:39.6]} 15. b5
{[%clk 0:02:38.3]} 15... Qb4+ {[%clk 0:02:34.3]} 16. Nd2 {[%clk 0:02:39.1]}
16... Qxb2 {[%clk 0:01:38]} 17. Bxb2 {[%clk 0:02:40.2]} 17... Nb4 {[%clk
0:01:39.6]} 18. Nxe4 {[%clk 0:02:31.7]} 18... fxe4 {[%clk 0:01:34.3]} 19. O-O
{[%clk 0:02:24.3]} 19... Ra8 {[%clk 0:01:27.3]} 20. Ra1 {[%clk 0:02:22.5]} 20...
Rxa1+ {[%clk 0:01:19.5]} 21. Bxa1 {[%clk 0:02:24.4]} 21... Kf7 {[%clk
0:01:05.5]} 22. f3 {[%clk 0:02:21.4]} 22... exf3 {[%clk 0:01:03.8]} 23. gxf3
{[%clk 0:02:23.3]} 23... Nc2 {[%clk 0:01:04.1]} 24. Bc3 {[%clk 0:02:15]} 24...
Nxe3 {[%clk 0:01:05.1]} 25. Kf2 {[%clk 0:02:15.8]} 25... Nf5 {[%clk 0:01:04.1]}
26. Bd3 {[%clk 0:02:16.7]} 26... Nh4 {[%clk 0:00:58.7]} 27. Be2 {[%clk
0:02:14.6]} 27... g6 {[%clk 0:00:57.9]} 28. Ke3 {[%clk 0:02:15.8]} 28... g5
{[%clk 0:00:56.9]} 29. Kf2 {[%clk 0:02:15]} 29... h6 {[%clk 0:00:57.1]} 30. Kg3
{[%clk 0:02:14.9]} 30... Kg6 {[%clk 0:00:54.8]} 31. Bd3+ {[%clk 0:02:14.5]}
31... Kh5 {[%clk 0:00:53.6]} 32. Be2 {[%clk 0:02:14.3]} 32... Nf5+ {[%clk
0:00:51.3]} 33. Kh3 {[%clk 0:02:11.9]} 33... Kg6 {[%clk 0:00:52.4]} 34. Kg2
{[%clk 0:01:58.8]} 34... Kf7 {[%clk 0:00:51.9]} 35. Kf2 {[%clk 0:01:56.7]} 35...
d5 {[%clk 0:00:48]} 36. c5 {[%clk 0:01:54.2]} 36... bxc5 {[%clk 0:00:46.3]} 37.
dxc5 {[%clk 0:01:56.1]} 37... d4 {[%clk 0:00:47.8]} 38. Ba5 {[%clk 0:01:54.7]}
38... c6 {[%clk 0:00:39.8]} 39. b6 {[%clk 0:01:26.7]} 39... Ne3 {[%clk
0:00:40.7]} 40. Bd2 {[%clk 0:01:20.8]} 40... Nd5 {[%clk 0:00:38.2]} 41. Kg3
{[%clk 0:01:16.5]} 41... e5 {[%clk 0:00:37.1]} 42. h4 {[%clk 0:01:17.5]} 42...
Kf6 {[%clk 0:00:36.8]} 43. hxg5+ {[%clk 0:01:14.3]} 43... hxg5 {[%clk
0:00:38.7]} 44. Kg4 {[%clk 0:01:15.7]} 44... Bc8+ {[%clk 0:00:39]} 45. Kg3
{[%clk 0:01:13.5]} 45... Nf4 {[%clk 0:00:40]} 46. Bd1 {[%clk 0:01:12]} 46... Ne6
{[%clk 0:00:39.2]} 47. Bb4 {[%clk 0:01:11.3]} 47... Bb7 {[%clk 0:00:35.4]} 48.
Bb3 {[%clk 0:01:07.9]} 48... Nf4 {[%clk 0:00:33.7]} 49. Bc4 {[%clk 0:01:02.7]}
49... Nd5 {[%clk 0:00:32.3]} 50. Bd2 {[%clk 0:01:01]} 50... Ne7 {[%clk
0:00:32.5]} 51. Kg4 {[%clk 0:00:59.1]} 51... Bc8+ {[%clk 0:00:32.5]} 52. Kh5
{[%clk 0:01:00.2]} 52... Nd5 {[%clk 0:00:26.1]} 53. Bxd5 {[%clk 0:00:55.8]}
53... cxd5 {[%clk 0:00:26.7]} 54. c6 {[%clk 0:00:57.4]} 1-0

[Event "*** Titled Tuesday Blitz"]
[Site "Chess.com"]
[Date "2019.09.03"]
[Round "1"]
[White "leschebaza"]
[Black "harvsp123"]
[Result "0-1"]
[WhiteElo "2069"]
[BlackElo "2554"]
[TimeControl "180+2"]
[EndTime "15:09:44 PDT"]
[Termination "harvsp123 won by resignation"]

1. e4 {[%clk 0:02:52.8]} 1... c5 {[%clk 0:03:00.6]} 2. Nf3 {[%clk 0:02:52.5]}
2... d6 {[%clk 0:03:02]} 3. d4 {[%clk 0:02:52.7]} 3... cxd4 {[%clk 0:03:03.9]}
4. Nxd4 {[%clk 0:02:54.6]} 4... Nf6 {[%clk 0:03:05.5]} 5. Nc3 {[%clk 0:02:55.5]}
5... a6 {[%clk 0:03:06.8]} 6. h3 {[%clk 0:02:56.5]} 6... e5 {[%clk 0:03:07.2]}
7. Nde2 {[%clk 0:02:57.4]} 7... h5 {[%clk 0:03:04.8]} 8. g3 {[%clk 0:02:58.4]}
8... Nbd7 {[%clk 0:03:04.3]} 9. Bg2 {[%clk 0:02:59.4]} 9... b5 {[%clk 0:03:05]}
10. a3 {[%clk 0:03:00.3]} 10... Bb7 {[%clk 0:03:06.1]} 11. O-O {[%clk
0:03:00.1]} 11... Be7 {[%clk 0:03:07.1]} 12. Be3 {[%clk 0:02:56]} 12... Rc8
{[%clk 0:03:06.4]} 13. Qd2 {[%clk 0:02:55.9]} 13... Nc5 {[%clk 0:02:27.3]} 14.
Bxc5 {[%clk 0:02:43.1]} 14... Rxc5 {[%clk 0:02:19.2]} 15. Nc1 {[%clk 0:02:16.1]}
15... Qa8 {[%clk 0:02:18]} 16. Re1 {[%clk 0:02:16.2]} 16... Rc4 {[%clk
0:02:05.5]} 17. Qd3 {[%clk 0:02:11.1]} 17... Qb8 {[%clk 0:01:36.3]} 18. Nb3
{[%clk 0:02:08.5]} 18... Bd8 {[%clk 0:01:35.3]} 19. Rad1 {[%clk 0:02:07]} 19...
Bc7 {[%clk 0:01:17.5]} 20. Qe2 {[%clk 0:01:48.5]} 20... O-O {[%clk 0:01:15.4]}
21. Nd2 {[%clk 0:01:48.4]} 21... Rd4 {[%clk 0:01:15.1]} 22. Nb3 {[%clk
0:01:48.2]} 22... Rxd1 {[%clk 0:01:15.5]} 23. Rxd1 {[%clk 0:01:49.5]} 23... Bb6
{[%clk 0:01:16.5]} 24. Nd2 {[%clk 0:01:23.6]} 24... Rc8 {[%clk 0:01:16.5]} 25.
Nf1 {[%clk 0:01:20.2]} 25... Bd4 {[%clk 0:01:17]} 26. Rd3 {[%clk 0:01:08.2]}
26... g6 {[%clk 0:01:16]} 27. g4 {[%clk 0:00:33.6]} 27... hxg4 {[%clk
0:01:14.8]} 28. hxg4 {[%clk 0:00:34.8]} 28... Kg7 {[%clk 0:01:12.4]} 29. Ng3
{[%clk 0:00:35.8]} 29... Qc7 {[%clk 0:00:46.2]} 30. g5 {[%clk 0:00:36.7]} 30...
Nd7 {[%clk 0:00:45.5]} 31. Qf3 {[%clk 0:00:18.7]} 31... Rh8 {[%clk 0:00:41.2]}
32. Qg4 {[%clk 0:00:15.1]} 32... Qd8 {[%clk 0:00:41.1]} 33. Rf3 {[%clk
0:00:13.9]} 33... Qe7 {[%clk 0:00:36.2]} 34. Rd3 {[%clk 0:00:13.8]} 34... Nc5
{[%clk 0:00:18.3]} 35. Rf3 {[%clk 0:00:12.2]} 35... Ne6 {[%clk 0:00:18.5]} 36.
Rd3 {[%clk 0:00:09.9]} 36... Qxg5 {[%clk 0:00:17.9]} 37. Qxg5 {[%clk 0:00:10.8]}
37... Nxg5 {[%clk 0:00:19.8]} 38. b3 {[%clk 0:00:10.3]} 38... Ne6 {[%clk
0:00:20.8]} 39. Nd5 {[%clk 0:00:11.1]} 39... Bxd5 {[%clk 0:00:20.8]} 40. exd5
{[%clk 0:00:12.8]} 40... Nf4 {[%clk 0:00:22.4]} 41. Rd1 {[%clk 0:00:13.4]} 41...
f5 {[%clk 0:00:23.7]} 42. Rc1 {[%clk 0:00:12.4]} 42... Rc8 {[%clk 0:00:25.1]}
43. Kf1 {[%clk 0:00:12.6]} 43... Bb2 {[%clk 0:00:25.1]} 44. Rd1 {[%clk
0:00:11.5]} 44... Rxc2 {[%clk 0:00:26.5]} 45. Bf3 {[%clk 0:00:10.8]} 45... Bd4
{[%clk 0:00:27.2]} 46. Nh1 {[%clk 0:00:10.9]} 46... Rc3 {[%clk 0:00:28]} 47. Be2
{[%clk 0:00:11.6]} 47... Rxb3 {[%clk 0:00:29.1]} 48. Rc1 {[%clk 0:00:13.2]}
48... Rc3 {[%clk 0:00:29.9]} 49. Rxc3 {[%clk 0:00:13.3]} 49... Bxc3 {[%clk
0:00:31]} 50. a4 {[%clk 0:00:15.2]} 50... bxa4 {[%clk 0:00:31.7]} 51. Bxa6
{[%clk 0:00:17.1]} 51... a3 {[%clk 0:00:33.2]} 52. Bc4 {[%clk 0:00:18.4]} 52...
e4 {[%clk 0:00:33.8]} 53. Ng3 {[%clk 0:00:19.1]} 53... Kf6 {[%clk 0:00:35.1]}
54. Ne2 {[%clk 0:00:20.5]} 54... Nxe2 {[%clk 0:00:35.5]} 55. Kxe2 {[%clk
0:00:22]} 55... f4 {[%clk 0:00:36.5]} 56. Ba2 {[%clk 0:00:22.4]} 56... Ke5
{[%clk 0:00:37.4]} 57. f3 {[%clk 0:00:22.6]} 57... g5 {[%clk 0:00:38.9]} 58.
fxe4 {[%clk 0:00:23.3]} 58... Kxe4 {[%clk 0:00:40.5]} 59. Kf2 {[%clk 0:00:24.2]}
59... g4 {[%clk 0:00:41.3]} 60. Kg2 {[%clk 0:00:25.5]} 60... Be5 {[%clk
0:00:41]} 61. Kf2 {[%clk 0:00:24.7]} 61... f3 {[%clk 0:00:40.2]} 62. Kf1 {[%clk
0:00:25.1]} 62... g3 {[%clk 0:00:40.9]} 63. Kg1 {[%clk 0:00:25.9]} 63... Bd4+
{[%clk 0:00:42]} 64. Kf1 {[%clk 0:00:26.8]} 64... g2+ {[%clk 0:00:42.6]} 0-1